bitfinex-derivatives/quotes_SOLF0:USTF0_20250328
["timestamp","ask_amount","ask_price","bid_price","bid_amount"]
[1743157444320,7.69110706,131.03,131.02,9.89173145]
[1743157445426,7.6349,131.02,131.01,9.89173145]
[1743157446331,0.05670706,131.03,131.01,9.89173145]
[1743157446523,0.05670706,131.03,131.02,9.89173145]
[1743157447729,0.05670706,131.03,131.02,17.52623145]
[1743157449938,0.05670706,131.03,131.02,17.52623145]
[1743157450228,0.05670706,131.03,131.02,9.89173145]
[1743157450632,7.69060706,131.03,131.02,9.89173145]
[1743157450835,0.05670706,131.03,131.02,9.89173145]
[1743157451227,7.69060706,131.03,131.02,9.89173145]
[1743157451427,0.05670706,131.03,131.02,17.52623145]
[1743157452127,7.633,131.05,131.03,7.6338]
[1743157452327,7.633,131.05,131.04,9.89173145]
[1743157452634,7.573,131.05,131.04,9.89173145]
[1743157456441,7.573,131.05,131.04,9.83173145]
[1743157459143,7.6325,131.06,131.04,9.83173145]
[1743157459343,7.6325,131.06,131.05,9.89173145]
[1743157460443,11.87916002,131.13,131.05,9.89173145]
[1743157460645,27.26,131.14,131.1,9.89173145]
[1743157460943,7.6289,131.12,131.1,9.89173145]
[1743157461143,7.6289,131.12,131.11,0.0492055]
[1743157461444,7.6284,131.13,131.11,0.0492055]
[1743157463541,7.6287,131.12,131.11,0.0492055]
[1743157464138,17.51173145,131.12,131.06,9.89173145]
[1743157464443,9.89173145,131.07,131.02,9.89173145]
[1743157464641,44.78403145,131.06,131.01,9.89173145]
[1743157464940,27.26,131.05,131.02,17.52593145]
[1743157465338,34.94731283,131.05,131.02,17.58421215]
[1743157466345,27.31451283,131.05,131.02,17.58421215]
[1743157466638,27.31451283,131.05,131.04,9.89173145]
[1743157466943,0.05451283,131.05,131.04,9.89173145]
[1743157467144,0.05451283,131.05,131.04,17.52503145]
[1743157467649,7.6314,131.08,131.05,7.6327]
[1743157467850,7.6314,131.08,131.07,9.89173145]
[1743157468046,34.8908,131.09,131.07,9.89173145]
[1743157468443,7.6294,131.11,131.08,9.89173145]
[1743157468649,34.8894,131.11,131.1,9.89173145]
[1743157468953,4.838,131.17,131.1,9.89173145]
[1743157468954,27.26,131.13,131.1,9.89173145]
[1743157469144,7.6287,131.12,131.11,9.89173145]
[1743157469548,7.6287,131.12,131.1,9.89173145]
[1743157469948,7.6293,131.11,131.1,9.89173145]
[1743157470654,7.6293,131.11,131.09,0.05715652]
[1743157470655,7.6299,131.1,131.09,0.05715652]
[1743157470846,34.8899,131.1,131.09,0.05715652]
[1743157473055,34.8899,131.1,131.05,9.89173145]
[1743157473056,37.15173145,131.1,131.05,9.89173145]
[1743157473758,7.6325,131.06,131.04,9.89173145]
[1743157473956,34.8925,131.06,131.04,9.89173145]
[1743157474151,34.94072296,131.06,131.04,9.94948849]
[1743157474357,7.6328,131.05,131.04,9.94948849]
[1743157475156,7.6328,131.05,131.04,0.05775704]
[1743157479257,34.94062296,131.06,131.04,9.94948849]
[1743157479457,27.30822296,131.06,131.04,9.94948849]
[1743157479957,34.94062296,131.06,131.04,9.94948849]
[1743157480352,27.30822296,131.06,131.04,17.58278849]
[1743157481153,34.94052296,131.06,131.04,9.94948849]
[1743157481354,27.30822296,131.06,131.04,9.94948849]
[1743157481555,27.30822296,131.06,131.05,9.89173145]
[1743157481949,0.04822296,131.06,131.05,9.89173145]
[1743157482152,0.04822296,131.06,131.04,9.94948849]
[1743157482756,27.26,131.13,131.05,9.89173145]
[1743157482957,37.15173145,131.13,131.08,9.89173145]
[1743157483156,7.6296,131.11,131.08,17.52273145]
[1743157484064,7.6296,131.11,131.08,17.57323236]
[1743157484263,7.6299,131.1,131.08,17.57323236]
[1743157484466,7.6299,131.1,131.09,9.89173145]
[1743157484658,7.6299,131.1,131.08,9.94223236]
[1743157485765,7.6304,131.09,131.08,0.05050091]
[1743157499774,7.6302,131.1,131.08,0.05050091]
[1743157499979,27.26,131.11,131.08,0.05050091]
[1743157500373,7.6304,131.09,131.08,0.05050091]
[1743157508385,15.40414896,131.12,131.08,0.05050091]
[1743157508684,42.66414896,131.12,131.08,0.05050091]
[1743157508887,9.85541642,131.11,131.08,0.05050091]
[1743157509081,17.48491642,131.11,131.08,7.68120091]
[1743157509484,9.85541642,131.11,131.08,0.05050091]
[1743157509683,17.48581642,131.09,131.08,0.05050091]
[1743157511285,44.74581642,131.09,131.08,0.05050091]
[1743157513988,37.11541642,131.09,131.01,37.11541642]
[1743157514188,9.85541642,131.05,131.01,2.4375]
[1743157514376,9.85541642,131.04,131.01,2.4375]
[1743157514582,9.85541642,131.04,131.02,7.6343]
[1743157514787,17.48851642,131.05,131.02,7.6343]
[1743157515190,17.53675337,131.05,131.02,7.69045284]
[1743157516491,0.04823695,131.05,131.02,9.91156926]
[1743157517389,0.04823695,131.05,131.04,7.6333]
[1743157517890,0.04823695,131.05,131.03,7.6337]
[1743157518489,0.04823695,131.05,131.04,7.6333]
[1743157518990,0.04823695,131.05,131.03,7.6336]
[1743157519883,7.68103695,131.05,131.02,7.69035284]
[1743157520085,7.68103695,131.05,131.02,0.05615284]
[1743157520487,7.68103695,131.05,131.02,7.69025284]
[1743157522894,7.6335,131.04,131.02,0.05615284]
[1743157523592,17.53675337,131.05,131.02,7.69045284]
[1743157523992,9.90365337,131.05,131.02,7.69045284]
[1743157524193,9.90365337,131.05,131.02,0.05615284]
[1743157524194,7.6334,131.04,131.02,0.05615284]
[1743157526194,17.53675337,131.05,131.02,7.69065284]
[1743157528691,7.6334,131.04,131.02,0.05615284]
[1743157529594,17.53665337,131.05,131.02,7.69065284]
[1743157530699,7.6334,131.04,131.02,0.05615284]
[1743157530894,9.85541642,131.04,131.02,0.05615284]
[1743157531092,9.85541642,131.03,131.02,0.05615284]
[1743157531397,17.48931642,131.03,131.02,0.05615284]
[1743157531799,44.74931642,131.03,131.02,0.05615284]
[1743157538996,37.11541642,131.03,130.95,2.4624]
[1743157539191,9.85541642,131.0,130.95,12.31781642]
[1743157539397,9.85541642,130.99,130.95,12.31781642]
[1743157540199,9.90987356,130.98,130.96,0.05866978]
[1743157540406,9.85541642,130.97,130.96,0.05866978]
[1743157541104,17.49311642,130.97,130.96,0.05866978]
[1743157543108,7.6377,130.97,130.96,0.05866978]
[1743157543810,17.49311642,130.97,130.96,0.05866978]
[1743157545713,44.75311642,130.97,130.96,0.05866978]
[1743157548009,0.05445714,130.98,130.96,0.05866978]
[1743157548315,0.05445714,130.98,130.96,9.9140862]
[1743157548515,0.05445714,130.98,130.97,7.6374]
[1743157549015,0.05445714,130.98,130.96,0.05866978]
[1743157549216,9.90987356,130.98,130.96,0.05866978]
[1743157549619,7.6374,130.97,130.96,0.05866978]
[1743157550116,44.75281642,130.97,130.96,0.05866978]
[1743157551011,27.26,130.97,130.96,0.05866978]
[1743157551315,0.05445714,130.98,130.97,7.6374]
[1743157551517,0.05445714,130.98,130.96,0.05866978]
[1743157552316,0.05445714,130.98,130.97,17.49281642]
[1743157552517,37.11541642,131.02,130.97,9.85541642]
[1743157552713,44.75001642,131.02,130.98,7.6365]
[1743157553813,0.05105859,131.01,130.99,0.05044753]
[1743157554214,0.05105859,131.01,130.99,7.68664753]
[1743157555324,0.05105859,131.01,130.99,0.05044753]
[1743157556325,7.68615859,131.01,130.99,0.05044753]
[1743157558726,0.05105859,131.01,130.99,0.05044753]
[1743157560728,7.6357,131.0,130.99,0.05044753]
[1743157562029,17.54187501,131.01,130.99,0.05044753]
[1743157562831,7.6357,131.0,130.99,0.05044753]
[1743157567632,34.8957,131.0,130.99,0.05044753]
[1743157568022,44.75111642,131.0,130.99,0.05044753]
[1743157568225,37.11541642,131.0,130.91,9.85541642]
[1743157568424,9.85541642,130.95,130.9,9.85541642]
[1743157568629,7.6397,130.94,130.9,17.49661642]
[1743157569236,7.6402,130.93,130.9,9.85541642]
[1743157569435,0.04830533,130.93,130.91,0.05554963]
[1743157569828,0.04830533,130.93,130.91,17.55156605]
[1743157570636,0.04830533,130.93,130.91,9.91096605]
[1743157571339,0.04830533,130.93,130.91,17.55186605]
[1743157571637,0.04830533,130.93,130.91,9.91096605]
[1743157571835,0.04830533,130.93,130.91,0.05554963]
[1743157572140,7.68860533,130.93,130.91,0.05554963]
[1743157575829,0.04830533,130.93,130.91,9.91096605]
[1743157576038,0.04830533,130.93,130.92,9.85541642]
[1743157576242,0.04830533,130.93,130.92,17.49571642]
[1743157576541,7.6377,130.97,130.92,9.85541642]
[1743157576739,27.26,130.98,130.95,9.85541642]
[1743157577043,27.26,131.0,130.96,9.85541642]
[1743157577244,9.85541642,131.0,130.96,9.85541642]
[1743157577542,7.68808992,130.99,130.97,0.05371545]
[1743157577742,0.05178992,130.99,130.97,0.05371545]
[1743157578539,0.05178992,130.99,130.97,9.90913187]
[1743157579339,0.05178992,130.99,130.98,9.85541642]
[1743157579743,0.05178992,130.99,130.98,17.49221642]
[1743157579941,0.05178992,130.99,130.98,9.85541642]
[1743157580446,0.05178992,130.99,130.98,17.49221642]
[1743157580648,9.85541642,131.03,130.98,9.85541642]
[1743157580848,7.6346,131.02,130.99,9.85541642]
[1743157581747,7.6346,131.02,130.99,9.90361483]
[1743157582154,7.6352,131.01,130.99,9.90361483]
[1743157583346,7.6352,131.01,130.99,0.04819841]
[1743157583848,7.6357,131.0,130.99,0.04819841]
[1743157586051,7.6354,131.01,130.99,0.04819841]
[1743157589152,9.85541642,131.03,130.99,0.04819841]
[1743157591260,7.6356,131.01,130.99,0.04819841]
[1743157591551,9.85541642,131.03,130.99,0.04819841]
[1743157591747,9.85541642,131.0,130.99,0.04819841]
[1743157591954,17.49111642,131.0,130.99,0.04819841]
[1743157598154,7.6384,130.96,130.94,9.85541642]
[1743157598351,9.85541642,130.97,130.92,12.13011642]
[1743157598552,7.6392,130.94,130.92,2.2747]
[1743157598751,9.85541642,130.94,130.9,9.85541642]
[1743157598957,9.85541642,130.94,130.89,19.88161642]
[1743157599153,9.85541642,130.94,130.91,0.05323108]
[1743157599355,7.69187426,130.93,130.91,0.05323108]
[1743157599951,0.05207426,130.93,130.91,0.05323108]
[1743157600457,7.69187426,130.93,130.91,0.05323108]
[1743157601562,7.6403,130.92,130.91,0.05323108]
[1743157607163,0.05207426,130.93,130.91,9.9086475]
[1743157607366,0.05207426,130.93,130.92,9.85541642]
[1743157607761,0.05207426,130.93,130.92,17.49571642]
[1743157608162,0.05207426,130.93,130.92,9.85541642]
[1743157611363,0.05207426,130.93,130.92,17.49571642]
[1743157612169,9.85541642,131.0,130.92,9.85541642]
[1743157612374,9.85541642,131.0,130.91,2.47763108]
[1743157612375,37.11541642,131.0,130.95,9.85541642]
[1743157612772,7.6372,130.98,130.95,9.85541642]
[1743157613278,7.6372,130.98,130.95,9.90407913]
[1743157614173,7.6372,130.98,130.95,17.54267913]
[1743157614379,7.6364,130.99,130.96,9.85541642]
[1743157615480,7.6369,130.98,130.96,9.85541642]
[1743157616679,27.26,131.0,130.96,17.49311642]
[1743157616880,27.26,131.0,130.96,9.85541642]
[1743157617178,34.896,131.0,130.96,17.49311642]
[1743157617374,7.636,131.0,130.96,17.49311642]
[1743157617574,9.85541642,131.01,130.96,17.49311642]
[1743157617774,7.6362,131.0,130.97,9.85541642]
[1743157617970,7.6362,131.0,130.97,17.49271642]
[1743157618172,9.85541642,131.03,130.98,9.85541642]
[1743157618378,7.6349,131.02,130.99,17.49161642]
[1743157618586,7.6349,131.02,130.99,17.54185302]
[1743157618978,7.6349,131.02,130.99,9.90565302]
[1743157619178,7.6354,131.01,130.99,9.90565302]
[1743157619382,7.6354,131.01,130.99,0.0502366]
[1743157621883,7.6357,131.0,130.99,0.0502366]
[1743157624881,7.6352,131.01,130.99,0.0502366]
[1743157625582,7.6344,131.03,130.99,7.6864366]
[1743157625784,7.6344,131.03,130.99,17.54185302]
[1743157625973,37.11541642,131.05,131.0,9.85541642]
[1743157626578,9.85541642,131.03,130.99,0.0502366]
[1743157627086,7.6348,131.02,130.99,0.0502366]
[1743157628479,17.48961642,131.03,130.99,0.0502366]
[1743157629179,7.6342,131.03,130.99,9.90565302]
[1743157629786,7.6342,131.03,131.0,7.6356]
[1743157629988,7.6335,131.04,131.0,9.85541642]
[1743157630189,7.6335,131.04,131.01,9.85541642]
[1743157630489,37.11541642,131.05,131.01,9.85541642]
[1743157630693,7.6342,131.03,131.01,9.85541642]
[1743157630989,7.6342,131.03,131.02,0.05195839]
[1743157631382,7.6336,131.04,131.02,0.05195839]
[1743157631589,27.26,131.05,131.02,0.05195839]
[1743157631785,37.11541642,131.08,131.03,9.85541642]
[1743157632091,27.26,131.08,131.04,17.48871642]
[1743157632391,9.85541642,131.09,131.04,17.48871642]
[1743157632590,7.6312,131.08,131.05,0.05342437]
[1743157634187,44.74631642,131.09,131.05,17.54134079]
[1743157634395,7.6309,131.09,131.06,9.85541642]
[1743157636592,7.6311,131.08,131.05,17.54134079]
[1743157636789,7.6311,131.08,131.05,9.90884079]
[1743157637495,7.6307,131.09,131.05,17.54144079]
[1743157637887,9.85541642,131.1,131.05,17.54144079]
[1743157638392,7.6307,131.09,131.05,17.54144079]
[1743157639597,7.631,131.08,131.05,17.54144079]
[1743157639795,7.631,131.08,131.06,9.85541642]
[1743157640797,7.6307,131.09,131.06,9.85541642]
[1743157641097,7.6307,131.09,131.05,17.54144079]
[1743157641296,7.6313,131.08,131.05,9.90884079]
[1743157641994,9.85541642,131.1,131.05,9.90884079]
[1743157642293,9.85541642,131.07,131.05,0.05342437]
[1743157642495,7.6322,131.06,131.05,0.05342437]
[1743157644700,7.6319,131.07,131.05,0.05342437]
[1743157645099,7.632,131.07,131.05,0.05342437]
[1743157646202,7.6322,131.06,131.05,0.05342437]
[1743157647102,7.6319,131.07,131.05,0.05342437]
[1743157647706,34.8711,131.08,131.05,9.90884079]
[1743157648202,27.24,131.08,131.05,17.54134079]
[1743157648401,7.6307,131.09,131.05,17.54134079]
[1743157648602,27.24,131.1,131.06,9.85541642]
[1743157648898,7.6304,131.1,131.06,17.48731642]
[1743157649205,37.09541642,131.11,131.06,17.48731642]
[1743157650205,7.6307,131.09,131.06,17.48731642]
[1743157651607,7.6307,131.09,131.06,9.85541642]
[1743157654306,7.6307,131.09,131.06,17.48761642]
[1743157656212,7.6307,131.09,131.06,9.85541642]
[1743157656713,37.09541642,131.11,131.07,9.85541642]
[1743157656912,27.24,131.11,131.07,9.85541642]
[1743157657117,37.09541642,131.11,131.08,0.05506883]
[1743157657317,17.48581642,131.09,131.08,0.05506883]
[1743157661811,17.48581642,131.09,131.01,9.85541642]
[1743157661812,9.85541642,131.09,131.01,9.85541642]
[1743157662010,9.85541642,131.06,131.01,9.85541642]
[1743157662212,7.6347,131.02,131.0,261.73541642]
[1743157662406,7.6347,131.02,130.99,12.13771642]
[1743157662712,7.6355,131.01,130.99,9.85541642]
[1743157662912,7.6355,131.01,130.99,9.91047794]
[1743157664311,0.05687302,131.02,130.99,0.05506152]
[1743157664509,0.05687302,131.02,130.99,9.91047794]
[1743157664710,7.69167302,131.02,130.99,9.91047794]
[1743157665317,7.69167302,131.02,130.99,17.54667794]
[1743157666907,0.05687302,131.02,130.99,17.54667794]
[1743157667113,0.05687302,131.02,131.0,17.49071642]
[1743157667309,0.05687302,131.02,131.01,9.85541642]
[1743157667711,0.05687302,131.02,131.0,9.85541642]
[1743157668408,7.69167302,131.02,131.0,9.85541642]
[1743157668917,0.05687302,131.02,130.99,9.91047794]
[1743157669318,7.6354,131.01,130.99,9.91047794]
[1743157669814,7.6354,131.01,130.99,0.05506152]
[1743157673618,7.6354,131.01,130.99,9.91047794]
[1743157680421,7.6357,131.0,130.99,0.05506152]
[1743157683128,7.6354,131.01,130.99,0.05506152]
[1743157683328,0.05687302,131.02,131.0,9.85541642]
[1743157683522,0.05687302,131.02,131.01,9.85541642]
[1743157688932,0.05687302,131.02,131.01,17.49051642]
[1743157689333,37.09541642,131.07,131.01,9.85541642]
[1743157689534,37.09541642,131.07,131.02,17.48981642]
[1743157689725,9.85541642,131.03,130.96,2.4619]
[1743157689921,9.85541642,131.0,130.94,9.85541642]
[1743157690633,9.85541642,131.0,130.96,0.05025925]
[1743157690836,7.6369,130.98,130.96,0.05025925]
[1743157691342,7.6374,130.97,130.96,0.05025925]
[1743157691549,17.49281642,130.97,130.96,0.05025925]
[1743157691741,7.6374,130.97,130.96,0.05025925]
[1743157695548,37.09541642,131.01,130.96,9.90567567]
[1743157695951,9.85541642,131.02,130.97,9.85541642]
[1743157696148,27.24,131.03,130.99,9.85541642]
[1743157696348,37.09541642,131.04,130.99,9.85541642]
[1743157696537,9.85541642,131.02,131.0,0.0578312]
[1743157696938,7.6355,131.01,131.0,0.0578312]
[1743157702457,17.49091642,131.01,131.0,0.0578312]
[1743157704451,9.85541642,131.01,131.0,0.0578312]
[1743157705652,17.49051642,131.01,131.0,0.0578312]
[1743157707758,44.73051642,131.01,131.0,0.0578312]
[1743157711060,7.6371,130.98,130.93,291.37461642]
[1743157711251,17.49251642,130.98,130.93,291.37461642]
[1743157711453,9.85541642,130.98,130.93,291.37461642]
[1743157711653,9.85541642,130.97,130.93,254.2792]
[1743157712058,7.69367478,130.96,130.94,0.05751225]
[1743157712262,0.05527478,130.96,130.94,0.05751225]
[1743157713760,7.69337478,130.96,130.94,0.05751225]
[1743157714753,0.05527478,130.96,130.94,0.05751225]
[1743157715160,0.05527478,130.96,130.95,17.49401642]
[1743157715359,7.636,131.0,130.95,9.85541642]
[1743157715562,9.85541642,131.0,130.95,9.85541642]
[1743157715757,7.6363,130.99,130.95,17.49371642]
[1743157716456,7.6363,130.99,130.95,9.85541642]
[1743157716857,9.85541642,130.99,130.94,9.91292867]
[1743157717656,7.6372,130.98,130.94,9.91292867]
[1743157717861,7.6372,130.98,130.94,17.55202867]
[1743157718163,17.49191642,130.99,130.94,17.55202867]
[1743157719864,7.6365,130.99,130.95,17.49401642]
[1743157721357,7.6365,130.99,130.95,9.85541642]
[1743157723061,7.6365,130.99,130.95,17.49401642]
[1743157724465,17.49141642,131.0,130.95,17.49401642]
[1743157724765,17.49141642,131.0,130.96,7.638]
[1743157724965,37.09541642,131.02,130.95,9.85541642]
[1743157725262,7.6352,131.01,130.97,7.68932617]
[1743157725463,7.6352,131.01,130.97,17.54474259]
[1743157725660,17.49021642,131.02,130.97,9.90754259]
[1743157725859,9.85541642,131.02,130.97,12.39634259]
[1743157726061,7.6336,131.04,130.98,9.85541642]
[1743157726257,9.85541642,131.03,130.98,12.26021642]
[1743157726458,9.85541642,131.03,131.0,0.04904625]
[1743157727263,394.79430275,131.1,131.0,0.04904625]
[1743157727463,9.85541642,131.06,131.01,9.85541642]
[1743157727965,9.85541642,131.06,131.02,0.05746432]
[1743157728367,7.633,131.05,131.02,0.05746432]
[1743157729775,37.09541642,131.09,131.04,9.85541642]
[1743157730264,7.6313,131.08,131.05,0.05174315]
[1743157730769,7.6316,131.07,131.05,0.05174315]
[1743157733271,17.48671642,131.08,131.05,0.05174315]
[1743157734467,7.6318,131.07,131.05,0.05174315]
[1743157739270,7.6322,131.06,131.05,0.05174315]
[1743157741773,9.85541642,131.07,131.05,0.05174315]
[1743157742075,37.07541642,131.09,131.05,0.05174315]
[1743157742776,7.6312,131.08,131.05,0.05174315]
[1743157743973,44.70611642,131.09,131.05,0.05174315]
[1743157744174,37.07541642,131.09,131.05,0.05174315]
[1743157745480,9.85541642,131.06,131.05,0.05174315]
[1743157745676,17.48761642,131.06,131.05,0.05174315]
[1743157746270,44.70761642,131.06,131.05,0.05174315]
[1743157747983,34.8522,131.06,131.05,0.05174315]
[1743157748383,37.07541642,131.08,131.05,0.05174315]
[1743157748673,27.22,131.08,131.04,9.85541642]
[1743157748878,7.6306,131.09,131.05,9.90836548]
[1743157749082,37.07541642,131.1,131.05,9.85541642]
[1743157749274,37.07541642,131.1,131.06,0.05008767]
[1743157749275,7.6313,131.08,131.06,0.05008767]
[1743157749579,9.85541642,131.07,131.06,0.05008767]
[1743157749777,17.48701642,131.07,131.06,0.05008767]
[1743157750881,7.6316,131.07,131.06,0.05008767]
[1743157760289,17.48701642,131.07,131.06,0.05008767]
[1743157760492,37.07541642,131.07,131.01,9.85541642]
[1743157760694,9.85541642,131.04,130.99,9.85541642]
[1743157761091,7.6342,131.03,130.99,17.49141642]
[1743157761293,9.85541642,131.04,131.0,9.85541642]
[1743157761496,7.6339,131.04,131.0,9.85541642]
[1743157761687,0.0569003,131.03,131.01,0.05249422]
[1743157764492,7.6909003,131.03,131.01,0.05249422]
[1743157764795,0.0569003,131.03,131.01,0.05249422]
[1743157764999,0.0569003,131.03,131.01,9.90791064]
[1743157766093,0.0569003,131.03,131.02,9.85541642]
[1743157766794,7.6908003,131.03,131.01,9.90791064]
[1743157767901,7.6908003,131.03,131.01,0.05249422]
[1743157777811,0.0569003,131.03,131.01,9.90791064]
[1743157778311,507.82863699,131.12,131.02,9.85541642]
[1743157778509,126.46405341,131.12,131.07,9.85541642]
[1743157778812,41.65777196,131.12,131.07,9.85541642]
[1743157779013,7.6301,131.1,131.07,9.85541642]
[1743157779411,7.6301,131.1,131.07,9.90485217]
[1743157779616,7.6305,131.09,131.07,0.04943575]
[1743157779821,9.85541642,131.09,131.07,0.04943575]
[1743157780211,7.631,131.08,131.07,0.04943575]
[1743157782916,17.48641642,131.08,131.07,0.04943575]
[1743157783714,17.48611642,131.09,131.07,0.04943575]
[1743157784017,7.6307,131.09,131.07,0.04943575]
[1743157786116,7.631,131.08,131.07,0.04943575]
[1743157789021,7.6308,131.09,131.07,0.04943575]
[1743157789523,17.48621642,131.09,131.07,0.04943575]
[1743157790522,4.6837,131.13,131.08,9.85541642]
[1743157790721,41.73911642,131.13,131.09,9.85541642]
[1743157790920,27.2,131.13,131.1,9.85541642]
[1743157791119,43.48542994,131.16,131.12,9.85541642]
[1743157791321,43.48542994,131.16,131.14,9.85541642]
[1743157791520,31.80235554,131.16,131.14,9.85541642]
[1743157791716,31.80235554,131.16,131.14,9.90719233]
[1743157792317,39.42875554,131.16,131.14,9.90719233]
[1743157793328,7.626,131.17,131.14,9.90719233]
[1743157795026,43.47107823,131.24,131.16,17.48161642]
[1743157795223,43.47107823,131.24,131.19,9.85541642]
[1743157795415,9.85541642,131.21,131.17,9.85541642]
[1743157795615,17.47941642,131.2,131.19,0.05765005]
[1743157795822,9.85541642,131.2,131.14,9.85541642]
[1743157796024,9.85541642,131.19,131.14,9.85541642]
[1743157796221,7.6255,131.18,131.14,17.48291642]
[1743157796525,37.05541642,131.19,131.13,27.2]
[1743157796526,27.2,131.19,131.15,9.85541642]
[1743157796726,9.85541642,131.2,131.16,9.85541642]
[1743157797026,0.053136,131.18,131.16,9.90994527]
[1743157797528,0.053136,131.18,131.17,9.85541642]
[1743157797924,31.80235554,131.27,131.19,7.6243]
[1743157798123,9.85541642,131.24,131.2,9.85541642]
[1743157798323,9.85541642,131.24,131.19,9.85541642]
[1743157798525,7.6235,131.21,131.18,9.85541642]
[1743157798824,9.85541642,131.23,131.18,9.85541642]
[1743157799027,9.85541642,131.22,131.18,0.05379754]
[1743157799223,9.85541642,131.22,131.17,9.85541642]
[1743157799423,9.85541642,131.22,131.19,0.05422482]
[1743157799625,7.6244,131.2,131.19,0.05422482]
[1743157800921,17.47981642,131.2,131.19,0.05422482]
[1743157802533,7.6244,131.2,131.19,0.05422482]
[1743157804232,2.3809,131.26,131.19,0.05422482]
[1743157804233,7.6232,131.22,131.19,0.05422482]
[1743157804432,9.85541642,131.22,131.19,0.05422482]
[1743157804827,7.6235,131.21,131.19,0.05422482]
[1743157805032,9.85541642,131.21,131.19,0.05422482]
[1743157805638,7.624,131.2,131.19,0.05422482]
[1743157807641,17.47941642,131.2,131.19,0.05422482]
[1743157812548,34.8239,131.21,131.19,0.05422482]
[1743157812749,27.2,131.21,131.19,0.05422482]
[1743157813751,34.8236,131.21,131.19,0.05422482]
[1743157814951,27.2,131.21,131.19,7.67882482]
[1743157815150,27.2,131.21,131.19,0.05422482]
[1743157815551,27.2,131.21,131.19,7.67852482]
[1743157815753,9.85541642,131.26,131.2,9.85541642]
[1743157815951,9.85541642,131.26,131.21,9.85541642]
[1743157816157,9.85541642,131.23,131.22,0.05470713]
[1743157816368,37.05541642,131.23,131.18,9.85541642]
[1743157816651,9.85541642,131.21,131.16,9.85541642]
[1743157816958,9.85541642,131.21,131.14,2.4134]
[1743157816959,9.85541642,131.17,131.13,9.85541642]
[1743157817156,9.85541642,131.16,131.11,9.85541642]
[1743157817457,27.22,131.17,131.13,9.85541642]
[1743157817649,7.6275,131.15,131.11,7.6289]
[1743157817854,7.6275,131.15,131.12,9.85541642]
[1743157818158,7.6275,131.15,131.14,0.05408126]
[1743157819854,0.05665643,131.16,131.15,7.6269]
[1743157820061,0.05665643,131.16,131.14,9.90949768]
[1743157820362,0.05665643,131.16,131.14,17.53669768]
[1743157821158,31.80235554,131.29,131.15,37.31541642]
[1743157821458,17.47741642,131.24,131.19,9.85541642]
[1743157821662,37.37541642,131.23,131.18,17.48031642]
[1743157821956,17.47851642,131.22,131.17,9.85541642]
[1743157822363,27.52,131.23,131.19,9.85541642]
[1743157822559,44.99801642,131.23,131.18,9.91312707]
[1743157823755,35.1426,131.23,131.19,9.85541642]
[1743157824556,27.52,131.23,131.2,7.6238]
[1743157825068,27.52,131.23,131.19,9.85541642]
[1743157825257,7.6231,131.22,131.19,9.85541642]
[1743157825461,7.6231,131.22,131.18,9.91312707]
[1743157825764,2664.26061033,131.45,131.18,9.91312707]
[1743157825765,9.85541642,131.25,131.2,9.85541642]
[1743157825956,7.622,131.24,131.21,7.6234]
[1743157826264,7.622,131.24,131.21,7.67655743]
[1743157826465,27.72,131.23,131.21,0.05315743]
[1743157827657,9.85541642,131.26,131.21,9.90857385]
[1743157827861,37.59541642,131.26,131.21,9.85541642]
[1743157828061,37.59541642,131.26,131.22,0.05553811]
[1743157828256,7.6212,131.25,131.22,0.05553811]
[1743157828464,9.85541642,131.25,131.22,0.05553811]
[1743157829066,7.6223,131.23,131.22,0.05553811]
[1743157830766,17.47771642,131.23,131.22,0.05553811]
[1743157830967,45.29771642,131.23,131.22,0.05553811]
[1743157833570,7.6252,131.18,131.15,19.92891642]
[1743157833772,27.8,131.19,131.15,12.30211642]
[1743157834366,7.6261,131.17,131.15,12.30211642]
[1743157834766,7.68484398,131.17,131.15,12.35901275]
[1743157835665,7.6264,131.16,131.15,12.35901275]
[1743157835869,0.05874398,131.17,131.15,12.35901275]
[1743157836369,7.6264,131.16,131.15,12.35901275]
[1743157836967,7.6264,131.16,131.15,0.05689633]
[1743157837863,35.3864,131.16,131.15,0.05689633]
[1743157838775,37.61541642,131.16,131.08,9.85541642]
[1743157839075,9.85541642,131.12,131.07,9.85541642]
[1743157839269,7.6307,131.09,131.06,253.9726]
[1743157839470,7.6307,131.09,131.06,263.82801642]
[1743157839776,7.6307,131.09,131.06,271.45991642]
[1743157839973,0.04857674,131.09,131.06,12.298196]
[1743157840274,0.04857674,131.09,131.06,0.05017958]
[1743157840275,9.90399316,131.09,131.06,0.05017958]
[1743157840579,35.4113,131.08,131.06,0.05017958]
[1743157841176,27.78,131.08,131.06,7.68227958]
[1743157841374,27.78,131.08,131.06,0.05017958]
[1743157841576,27.78,131.08,131.06,7.68237958]